[Event "*** Titled Tuesday Blitz"]
[Site "Chess.com"]
[Date "2020.05.19"]
[Round "4"]
[White "Zq1"]
[Black "Rsnr"]
[Result "0-1"]
[WhiteElo "2522"]
[BlackElo "2840"]
[TimeControl "180+1"]
[EndTime "12:41:21 PDT"]
[Termination "Rsnr won on time"]

1. d4 {[%clk 0:03:00.9]} 1... Nf6 {[%clk 0:03:00.4]} 2. c4 {[%clk 0:03:00.8]}
2... e6 {[%clk 0:03:00.9]} 3. Nc3 {[%clk 0:03:00.3]} 3... Bb4 {[%clk 0:03:01.1]}
4. e3 {[%clk 0:03:00.3]} 4... O-O {[%clk 0:03:01.3]} 5. Bd3 {[%clk 0:03:00.2]}
5... d5 {[%clk 0:03:00.3]} 6. cxd5 {[%clk 0:02:59.5]} 6... exd5 {[%clk
0:03:00.3]} 7. Ne2 {[%clk 0:02:59.6]} 7... c6 {[%clk 0:02:37.8]} 8. O-O {[%clk
0:02:57.7]} 8... Re8 {[%clk 0:02:23.6]} 9. a3 {[%clk 0:02:52.1]} 9... Bd6 {[%clk
0:02:23.1]} 10. h3 {[%clk 0:02:39.6]} 10... Nbd7 {[%clk 0:02:15.7]} 11. b4
{[%clk 0:02:38.3]} 11... a5 {[%clk 0:02:15.4]} 12. Rb1 {[%clk 0:02:36.9]} 12...
axb4 {[%clk 0:02:12.7]} 13. axb4 {[%clk 0:02:36.3]} 13... Ne4 {[%clk 0:02:13]}
14. Qc2 {[%clk 0:02:30.5]} 14... Ndf6 {[%clk 0:02:12.8]} 15. f3 {[%clk
0:02:22.7]} 15... Nxc3 {[%clk 0:02:12.4]} 16. Nxc3 {[%clk 0:02:22.8]} 16... Bc7
{[%clk 0:02:06.2]} 17. Bd2 {[%clk 0:01:59.2]} 17... Qd6 {[%clk 0:02:06]} 18. f4
{[%clk 0:01:55]} 18... Bd7 {[%clk 0:01:35.7]} 19. Rbc1 {[%clk 0:01:31.6]} 19...
Bd8 {[%clk 0:01:13.2]} 20. Na4 {[%clk 0:01:17.2]} 20... b6 {[%clk 0:01:03.7]}
21. Nc3 {[%clk 0:01:05.5]} 21... b5 {[%clk 0:01:03.3]} 22. Ra1 {[%clk
0:00:55.7]} 22... Bb6 {[%clk 0:01:00.2]} 23. Rxa8 {[%clk 0:00:37.7]} 23... Rxa8
{[%clk 0:01:01.1]} 24. Qb2 {[%clk 0:00:37.6]} 24... g6 {[%clk 0:00:58.8]} 25.
Be2 {[%clk 0:00:29.9]} 25... Bf5 {[%clk 0:00:53.1]} 26. Bf3 {[%clk 0:00:29.9]}
26... Ne4 {[%clk 0:00:51.5]} 27. Nxe4 {[%clk 0:00:27.7]} 27... Bxe4 {[%clk
0:00:52.4]} 28. Bxe4 {[%clk 0:00:27.2]} 28... dxe4 {[%clk 0:00:53.3]} 29. Qb3
{[%clk 0:00:26.8]} 29... Qd5 {[%clk 0:00:36.1]} 30. Qxd5 {[%clk 0:00:26.7]}
30... cxd5 {[%clk 0:00:37]} 31. Rc1 {[%clk 0:00:26.5]} 31... Ra2 {[%clk
0:00:37.6]} 32. Be1 {[%clk 0:00:24.5]} 32... Re2 {[%clk 0:00:37.7]} 33. Kf1
{[%clk 0:00:18.1]} 33... Rxe3 {[%clk 0:00:37.6]} 34. Bf2 {[%clk 0:00:17.8]}
34... Rd3 {[%clk 0:00:37.3]} 35. Rc8+ {[%clk 0:00:15]} 35... Kg7 {[%clk
0:00:37.1]} 36. Rd8 {[%clk 0:00:15.1]} 36... Rb3 {[%clk 0:00:07.4]} 37. Rd6
{[%clk 0:00:08.7]} 37... Bc7 {[%clk 0:00:04.9]} 38. Rxd5 {[%clk 0:00:06.6]}
38... Rxb4 {[%clk 0:00:05.5]} 39. f5 {[%clk 0:00:05.2]} 39... Rb1+ {[%clk
0:00:03.9]} 40. Ke2 {[%clk 0:00:04.8]} 40... b4 {[%clk 0:00:04.8]} 41. Bh4
{[%clk 0:00:04.2]} 41... gxf5 {[%clk 0:00:04.1]} 42. Rxf5 {[%clk 0:00:02.4]}
42... b3 {[%clk 0:00:04.6]} 43. Rg5+ {[%clk 0:00:02.1]} 43... Kf8 {[%clk
0:00:04.3]} 44. Rb5 {[%clk 0:00:02.7]} 44... Bd6 {[%clk 0:00:03.8]} 45. Bf6
{[%clk 0:00:02.6]} 45... Ke8 {[%clk 0:00:04.4]} 46. Rb6 {[%clk 0:00:02.5]} 46...
Kd7 {[%clk 0:00:04.3]} 47. Rb5 {[%clk 0:00:02.8]} 47... Ke6 {[%clk 0:00:04.5]}
48. Be5 {[%clk 0:00:03.2]} 48... Bxe5 {[%clk 0:00:04.4]} 49. Rxe5+ {[%clk
0:00:03.8]} 49... Kf6 {[%clk 0:00:04.8]} 50. Rb5 {[%clk 0:00:03.8]} 50... b2
{[%clk 0:00:05.1]} 51. d5 {[%clk 0:00:03.9]} 51... Rg1 {[%clk 0:00:04.6]} 52.
Rb6+ {[%clk 0:00:02.5]} 52... Ke5 {[%clk 0:00:05]} 0-1

[Event "*** Titled Tuesday Blitz"]
[Site "Chess.com"]
[Date "2020.05.19"]
[Round "4"]
[White "Joshukid"]
[Black "MFBerna"]
[Result "1-0"]
[WhiteElo "2552"]
[BlackElo "2322"]
[TimeControl "180+1"]
[EndTime "12:41:21 PDT"]
[Termination "Joshukid won by checkmate"]

1. Nf3 {[%clk 0:02:58.1]} 1... g6 {[%clk 0:02:58.6]} 2. d4 {[%clk 0:02:53.3]}
2... Bg7 {[%clk 0:02:59.5]} 3. c4 {[%clk 0:02:54.2]} 3... Nf6 {[%clk 0:02:58.9]}
4. Nc3 {[%clk 0:02:54.6]} 4... O-O {[%clk 0:02:56.1]} 5. g3 {[%clk 0:02:51]}
5... d6 {[%clk 0:02:53.8]} 6. Bg2 {[%clk 0:02:51]} 6... Nbd7 {[%clk 0:02:54.5]}
7. O-O {[%clk 0:02:51.2]} 7... e5 {[%clk 0:02:55.1]} 8. Rb1 {[%clk 0:02:51.7]}
8... Re8 {[%clk 0:02:46]} 9. b4 {[%clk 0:02:48.8]} 9... a6 {[%clk 0:02:45.2]}
10. Qb3 {[%clk 0:02:29.1]} 10... exd4 {[%clk 0:02:34.5]} 11. Nxd4 {[%clk
0:02:30]} 11... Ne5 {[%clk 0:02:33.1]} 12. h3 {[%clk 0:02:22.6]} 12... Rb8
{[%clk 0:02:29.1]} 13. Rd1 {[%clk 0:02:18.7]} 13... Qe7 {[%clk 0:02:24.5]} 14.
Bg5 {[%clk 0:02:17.1]} 14... c6 {[%clk 0:02:23.3]} 15. b5 {[%clk 0:01:28.1]}
15... axb5 {[%clk 0:02:19.9]} 16. cxb5 {[%clk 0:01:27]} 16... Bd7 {[%clk
0:02:04.2]} 17. f4 {[%clk 0:01:22.8]} 17... h6 {[%clk 0:01:44.1]} 18. fxe5
{[%clk 0:01:11.2]} 18... hxg5 {[%clk 0:01:25.2]} 19. exf6 {[%clk 0:01:10.2]}
19... Qe3+ {[%clk 0:01:11.5]} 20. Kh2 {[%clk 0:01:09.9]} 20... Bxf6 {[%clk
0:01:10.3]} 21. Rd3 {[%clk 0:00:59.9]} 21... Qe5 {[%clk 0:00:57.7]} 22. Ne4
{[%clk 0:00:41.8]} 22... Be7 {[%clk 0:00:47.7]} 23. bxc6 {[%clk 0:00:29.5]}
23... bxc6 {[%clk 0:00:48.6]} 24. Qxb8 {[%clk 0:00:29.6]} 24... Rxb8 {[%clk
0:00:49.5]} 25. Rxb8+ {[%clk 0:00:30.2]} 25... Kg7 {[%clk 0:00:50.4]} 26. Rb7
{[%clk 0:00:29.7]} 26... Be8 {[%clk 0:00:41.6]} 27. Nf3 {[%clk 0:00:26.5]} 27...
Qxe4 {[%clk 0:00:40.2]} 28. Rd2 {[%clk 0:00:20.4]} 28... Qe3 {[%clk 0:00:32.9]}
29. a4 {[%clk 0:00:18.6]} 29... c5 {[%clk 0:00:29.8]} 30. a5 {[%clk 0:00:18.8]}
30... Bc6 {[%clk 0:00:29.6]} 31. Rbb2 {[%clk 0:00:11.1]} 31... Bf6 {[%clk
0:00:28.2]} 32. Ra2 {[%clk 0:00:11.3]} 32... c4 {[%clk 0:00:26.3]} 33. a6 {[%clk
0:00:10.8]} 33... c3 {[%clk 0:00:26.4]} 34. Rdc2 {[%clk 0:00:11.2]} 34... g4
{[%clk 0:00:24.3]} 35. hxg4 {[%clk 0:00:10]} 35... Be4 {[%clk 0:00:23.4]} 36. a7
{[%clk 0:00:09.8]} 36... Qh6+ {[%clk 0:00:14.6]} 37. Nh4 {[%clk 0:00:08]} 37...
Bxh4 {[%clk 0:00:12.6]} 38. Bxe4 {[%clk 0:00:07.6]} 38... Bf6+ {[%clk
0:00:03.4]} 39. Kg2 {[%clk 0:00:07.5]} 39... Qe3 {[%clk 0:00:04.3]} 40. a8=Q
{[%clk 0:00:06.6]} 40... Bd4 {[%clk 0:00:03.1]} 41. Kh3 {[%clk 0:00:05.3]} 41...
Qh6+ {[%clk 0:00:02.8]} 42. Kg2 {[%clk 0:00:05]} 42... Qe3 {[%clk 0:00:01.8]}
43. Ra1 {[%clk 0:00:05.2]} 43... Qg5 {[%clk 0:00:02.2]} 44. Bf3 {[%clk
0:00:05.1]} 44... Be5 {[%clk 0:00:02.3]} 45. Rh1 {[%clk 0:00:04.8]} 45... Qe3
{[%clk 0:00:02.4]} 46. Qh8# {[%clk 0:00:05.4]} 1-0

[Event "*** Titled Tuesday Blitz"]
[Site "Chess.com"]
[Date "2020.05.19"]
[Round "4"]
[White "Kislov_Oleg"]
[Black "Leonid_Starozhilov"]
[Result "1-0"]
[WhiteElo "2363"]
[BlackElo "2632"]
[TimeControl "180+1"]
[EndTime "12:41:21 PDT"]
[Termination "Kislov_Oleg won by resignation"]

1. e4 {[%clk 0:03:00.9]} 1... g6 {[%clk 0:02:59.5]} 2. d4 {[%clk 0:03:00.3]}
2... Bg7 {[%clk 0:02:59.9]} 3. Nc3 {[%clk 0:03:00]} 3... c6 {[%clk 0:02:58]} 4.
f4 {[%clk 0:02:56]} 4... d5 {[%clk 0:02:58]} 5. e5 {[%clk 0:02:56.5]} 5... h5
{[%clk 0:02:58.6]} 6. Nf3 {[%clk 0:02:55.8]} 6... Bg4 {[%clk 0:02:57.6]} 7. h3
{[%clk 0:02:51.8]} 7... Bxf3 {[%clk 0:02:56.2]} 8. Qxf3 {[%clk 0:02:52.7]} 8...
e6 {[%clk 0:02:44.3]} 9. Bd3 {[%clk 0:02:30.3]} 9... h4 {[%clk 0:02:34.5]} 10.
Be3 {[%clk 0:02:28.5]} 10... Ne7 {[%clk 0:02:29.3]} 11. Ne2 {[%clk 0:02:24.5]}
11... Nf5 {[%clk 0:02:27.6]} 12. Bf2 {[%clk 0:02:17.2]} 12... Nd7 {[%clk
0:02:22.8]} 13. O-O {[%clk 0:02:09.2]} 13... Qe7 {[%clk 0:02:02.3]} 14. c3
{[%clk 0:01:56.6]} 14... Bh6 {[%clk 0:01:49.5]} 15. Kh2 {[%clk 0:01:46.7]} 15...
Kf8 {[%clk 0:01:45.6]} 16. Qg4 {[%clk 0:01:43.5]} 16... Bg7 {[%clk 0:01:40]} 17.
Ng1 {[%clk 0:01:40.9]} 17... Kg8 {[%clk 0:01:07.7]} 18. Qe2 {[%clk 0:01:25.4]}
18... c5 {[%clk 0:00:55.1]} 19. Nf3 {[%clk 0:00:57.2]} 19... Bh6 {[%clk
0:00:51]} 20. Qd2 {[%clk 0:00:49.6]} 20... Bf8 {[%clk 0:00:38.2]} 21. Bxf5
{[%clk 0:00:40.4]} 21... gxf5 {[%clk 0:00:25.1]} 22. Qe1 {[%clk 0:00:40.5]}
22... Bh6 {[%clk 0:00:18.6]} 23. Bxh4 {[%clk 0:00:38.1]} 23... Bxf4+ {[%clk
0:00:17.1]} 24. g3 {[%clk 0:00:31.5]} 24... Rxh4 {[%clk 0:00:16.6]} 25. Nxh4
{[%clk 0:00:29]} 25... Bh6 {[%clk 0:00:15]} 26. g4 {[%clk 0:00:17.9]} 26... f4
{[%clk 0:00:13.1]} 27. Nf3 {[%clk 0:00:17.6]} 27... cxd4 {[%clk 0:00:12.4]} 28.
cxd4 {[%clk 0:00:15.9]} 28... Nf8 {[%clk 0:00:12.8]} 29. g5 {[%clk 0:00:15.7]}
29... Bg7 {[%clk 0:00:12.4]} 30. Qd2 {[%clk 0:00:14.3]} 30... Qd7 {[%clk
0:00:10.2]} 31. Qxf4 {[%clk 0:00:12.6]} 31... Qb5 {[%clk 0:00:10.3]} 32. Rf2
{[%clk 0:00:11.4]} 32... Qd3 {[%clk 0:00:09.2]} 33. Nh4 {[%clk 0:00:07.6]} 33...
Ng6 {[%clk 0:00:02.6]} 34. Qxf7+ {[%clk 0:00:07.6]} 34... Kh7 {[%clk 0:00:02.9]}
35. Qxg6+ {[%clk 0:00:07.8]} 35... Qxg6 {[%clk 0:00:03.8]} 36. Nxg6 {[%clk
0:00:08.6]} 36... Kxg6 {[%clk 0:00:04.7]} 37. Rg1 {[%clk 0:00:07.8]} 37... Rc8
{[%clk 0:00:04.9]} 38. h4 {[%clk 0:00:07.4]} 38... Rc4 {[%clk 0:00:05.3]} 39.
Rd2 {[%clk 0:00:04.6]} 39... Rxd4 {[%clk 0:00:03.9]} 40. Rxd4 {[%clk 0:00:04]}
40... Bxe5+ {[%clk 0:00:04.6]} 41. Kh3 {[%clk 0:00:04.5]} 41... Bxd4 {[%clk
0:00:05.5]} 42. Re1 {[%clk 0:00:04]} 42... e5 {[%clk 0:00:05.7]} 43. Kg4 {[%clk
0:00:04.2]} 43... Bxb2 {[%clk 0:00:05.6]} 44. h5+ {[%clk 0:00:04.3]} 44... Kf7
{[%clk 0:00:05.5]} 45. Kf5 {[%clk 0:00:04.7]} 45... Bd4 {[%clk 0:00:05.5]} 46.
h6 {[%clk 0:00:03.9]} 46... Kg8 {[%clk 0:00:05]} 47. g6 {[%clk 0:00:04.2]} 47...
Kh8 {[%clk 0:00:05.3]} 48. Kf6 {[%clk 0:00:03.8]} 48... e4+ {[%clk 0:00:05.2]}
49. Kf7 {[%clk 0:00:04]} 49... Bc3 {[%clk 0:00:04.4]} 50. g7+ {[%clk 0:00:04.2]}
1-0

[Event "*** Titled Tuesday Blitz"]
[Site "Chess.com"]
[Date "2020.05.19"]
[Round "4"]
[White "Gentle_Emperor"]
[Black "Misha_Bilous"]
[Result "0-1"]
[WhiteElo "2292"]
[BlackElo "2465"]
[TimeControl "180+1"]
[EndTime "12:41:21 PDT"]
[Termination "Misha_Bilous won by checkmate"]

1. d4 {[%clk 0:03:00.9]} 1... Nf6 {[%clk 0:03:00.1]} 2. Bf4 {[%clk 0:03:01.1]}
2... g6 {[%clk 0:03:00.5]} 3. Nc3 {[%clk 0:03:00.5]} 3... d5 {[%clk 0:02:59.9]}
4. e3 {[%clk 0:03:00.6]} 4... Bg7 {[%clk 0:03:00.5]} 5. h4 {[%clk 0:03:01.1]}
5... O-O {[%clk 0:03:00.4]} 6. h5 {[%clk 0:03:01.2]} 6... c5 {[%clk 0:03:01.1]}
7. hxg6 {[%clk 0:02:55.3]} 7... hxg6 {[%clk 0:03:02]} 8. Nf3 {[%clk 0:02:54.5]}
8... Nc6 {[%clk 0:03:02.3]} 9. Ne5 {[%clk 0:02:43.7]} 9... Qb6 {[%clk
0:03:01.2]} 10. Nxc6 {[%clk 0:02:34.1]} 10... bxc6 {[%clk 0:03:00.4]} 11. Rb1
{[%clk 0:02:34.2]} 11... Bf5 {[%clk 0:02:37.9]} 12. f3 {[%clk 0:02:25.5]} 12...
cxd4 {[%clk 0:02:38.2]} 13. exd4 {[%clk 0:02:24.2]} 13... Nh5 {[%clk 0:02:31.3]}
14. Be3 {[%clk 0:02:08.8]} 14... e5 {[%clk 0:02:31.3]} 15. Ne2 {[%clk
0:02:03.2]} 15... exd4 {[%clk 0:02:23.8]} 16. Bxd4 {[%clk 0:02:00]} 16... Bxd4
{[%clk 0:02:07.4]} 17. Qxd4 {[%clk 0:01:53.3]} 17... Rfe8 {[%clk 0:01:56.9]} 18.
Qxb6 {[%clk 0:01:36.8]} 18... axb6 {[%clk 0:01:57.8]} 19. Kf2 {[%clk 0:01:36.8]}
19... Nf6 {[%clk 0:01:36.1]} 20. Nd4 {[%clk 0:01:34.5]} 20... Bd7 {[%clk
0:01:36.1]} 21. a3 {[%clk 0:01:34.4]} 21... c5 {[%clk 0:01:34.7]} 22. Nb5 {[%clk
0:01:31.6]} 22... Re7 {[%clk 0:01:30.6]} 23. g4 {[%clk 0:01:23.1]} 23... d4
{[%clk 0:01:28.6]} 24. Bc4 {[%clk 0:01:14.6]} 24... Be6 {[%clk 0:00:57.6]} 25.
Bxe6 {[%clk 0:00:57.4]} 25... fxe6 {[%clk 0:00:58.5]} 26. Rbe1 {[%clk
0:00:27.7]} 26... Nd5 {[%clk 0:00:57.6]} 27. Rh6 {[%clk 0:00:24.3]} 27... Kg7
{[%clk 0:00:45.4]} 28. Reh1 {[%clk 0:00:24]} 28... Nf4 {[%clk 0:00:34]} 29. Rh7+
{[%clk 0:00:22.2]} 29... Kf6 {[%clk 0:00:33.3]} 30. g5+ {[%clk 0:00:22.4]} 30...
Kxg5 {[%clk 0:00:32.4]} 31. Rxe7 {[%clk 0:00:22.8]} 31... Kf6 {[%clk 0:00:28.7]}
32. Reh7 {[%clk 0:00:23]} 32... Rf8 {[%clk 0:00:26.5]} 33. Kg3 {[%clk
0:00:20.1]} 33... Nd5 {[%clk 0:00:24.3]} 34. Nd6 {[%clk 0:00:18.8]} 34... Ke5
{[%clk 0:00:20.3]} 35. Ne4 {[%clk 0:00:18.6]} 35... Ne3 {[%clk 0:00:16.2]} 36.
Rb7 {[%clk 0:00:16.2]} 36... Nxc2 {[%clk 0:00:14.6]} 37. Rxb6 {[%clk 0:00:15.6]}
37... d3 {[%clk 0:00:12.3]} 38. Nxc5 {[%clk 0:00:15.4]} 38... Nd4 {[%clk
0:00:11.2]} 39. Nxd3+ {[%clk 0:00:14.4]} 39... Kd5 {[%clk 0:00:11.6]} 40. Nf4+
{[%clk 0:00:14]} 40... Kc5 {[%clk 0:00:11]} 41. Rb4 {[%clk 0:00:14.1]} 41... g5
{[%clk 0:00:10.8]} 42. Nd3+ {[%clk 0:00:12.2]} 42... Kd5 {[%clk 0:00:11.4]} 43.
Rf1 {[%clk 0:00:09.9]} 43... Nc2 {[%clk 0:00:10.3]} 44. Rb5+ {[%clk 0:00:09.7]}
44... Kd6 {[%clk 0:00:09.6]} 45. Rxg5 {[%clk 0:00:10.6]} 45... Ne3 {[%clk
0:00:09.1]} 46. Re1 {[%clk 0:00:09.2]} 46... Nf5+ {[%clk 0:00:09.3]} 47. Kg4
{[%clk 0:00:09.3]} 47... Nh6+ {[%clk 0:00:09.1]} 48. Kh5 {[%clk 0:00:09.2]}
48... Nf5 {[%clk 0:00:10]} 49. Kg6 {[%clk 0:00:09.1]} 49... Rg8+ {[%clk
0:00:09.5]} 50. Kf6 {[%clk 0:00:07.5]} 50... Rf8+ {[%clk 0:00:09.4]} 51. Kg6
{[%clk 0:00:07.9]} 51... Rg8+ {[%clk 0:00:10]} 52. Kh5 {[%clk 0:00:08.2]} 52...
Rh8+ {[%clk 0:00:10.4]} 53. Kg4 {[%clk 0:00:08.5]} 53... Rh4# {[%clk 0:00:10.6]}
0-1

[Event "*** Titled Tuesday Blitz"]
[Site "Chess.com"]
[Date "2020.05.19"]
[Round "4"]
[White "nitpicker"]
[Black "zubridis"]
[Result "1-0"]
[WhiteElo "2315"]
[BlackElo "2448"]
[TimeControl "180+1"]
[EndTime "12:41:21 PDT"]
[Termination "nitpicker won on time"]

1. d4 {[%clk 0:03:00.9]} 1... Nf6 {[%clk 0:02:59]} 2. c4 {[%clk 0:03:00.6]} 2...
e6 {[%clk 0:02:58.9]} 3. g3 {[%clk 0:03:00.5]} 3... d5 {[%clk 0:02:57.1]} 4. Nf3
{[%clk 0:02:59.8]} 4... Bb4+ {[%clk 0:02:56.9]} 5. Bd2 {[%clk 0:02:59.2]} 5...
Bd6 {[%clk 0:02:56.8]} 6. Qc2 {[%clk 0:02:55.7]} 6... c6 {[%clk 0:02:53.1]} 7.
Bg2 {[%clk 0:02:55.5]} 7... O-O {[%clk 0:02:51.3]} 8. O-O {[%clk 0:02:55.8]}
8... Ne4 {[%clk 0:02:50.7]} 9. Bf4 {[%clk 0:02:53.1]} 9... Bxf4 {[%clk
0:02:49.1]} 10. gxf4 {[%clk 0:02:54]} 10... Nd7 {[%clk 0:02:41.3]} 11. e3 {[%clk
0:02:53.2]} 11... f5 {[%clk 0:02:29.1]} 12. Kh1 {[%clk 0:02:44.9]} 12... Rf6
{[%clk 0:01:53]} 13. Nbd2 {[%clk 0:02:42.8]} 13... Rh6 {[%clk 0:01:51.3]} 14.
Nxe4 {[%clk 0:01:56.8]} 14... fxe4 {[%clk 0:01:44.2]} 15. Ng5 {[%clk 0:01:56.7]}
15... Nf6 {[%clk 0:01:03.4]} 16. f3 {[%clk 0:01:54.8]} 16... exf3 {[%clk
0:01:02.4]} 17. Bxf3 {[%clk 0:01:53.4]} 17... Bd7 {[%clk 0:01:02.7]} 18. Rg1
{[%clk 0:01:44.6]} 18... Qe7 {[%clk 0:01:02.4]} 19. Rg2 {[%clk 0:01:30.6]} 19...
Be8 {[%clk 0:01:02.8]} 20. Rag1 {[%clk 0:01:07.9]} 20... Bg6 {[%clk 0:01:03.1]}
21. Qe2 {[%clk 0:01:01.2]} 21... Bf5 {[%clk 0:01:02.4]} 22. b3 {[%clk
0:00:53.3]} 22... Rf8 {[%clk 0:01:01.8]} 23. e4 {[%clk 0:00:52.5]} 23... dxe4
{[%clk 0:01:00.1]} 24. Nxe4 {[%clk 0:00:52.6]} 24... Bxe4 {[%clk 0:00:54.5]} 25.
Bxe4 {[%clk 0:00:52.8]} 25... Rf7 {[%clk 0:00:47.2]} 26. Bf3 {[%clk 0:00:48.3]}
26... Rh4 {[%clk 0:00:41.9]} 27. Qe5 {[%clk 0:00:46.9]} 27... Nd7 {[%clk
0:00:29]} 28. Qc7 {[%clk 0:00:41.9]} 28... Rhxf4 {[%clk 0:00:28.8]} 29. Rxg7+
{[%clk 0:00:38.5]} 29... Rxg7 {[%clk 0:00:27.2]} 30. Qxf4 {[%clk 0:00:33.7]}
30... Rxg1+ {[%clk 0:00:23.8]} 31. Kxg1 {[%clk 0:00:33.7]} 31... e5 {[%clk
0:00:17.5]} 32. Qg4+ {[%clk 0:00:25.4]} 32... Qg7 {[%clk 0:00:17.2]} 33. d5
{[%clk 0:00:24.3]} 33... cxd5 {[%clk 0:00:15.8]} 34. Bxd5+ {[%clk 0:00:23.7]}
34... Kf8 {[%clk 0:00:14.9]} 35. Qxg7+ {[%clk 0:00:22.8]} 35... Kxg7 {[%clk
0:00:15]} 36. Bxb7 {[%clk 0:00:22.5]} 36... a5 {[%clk 0:00:14.4]} 37. Kf2 {[%clk
0:00:21.2]} 37... Nc5 {[%clk 0:00:12.5]} 38. Bd5 {[%clk 0:00:20.4]} 38... Kf6
{[%clk 0:00:09.2]} 39. Ke3 {[%clk 0:00:20.1]} 39... Ke7 {[%clk 0:00:08.3]} 40.
Be4 {[%clk 0:00:19.7]} 40... Kd6 {[%clk 0:00:04.1]} 41. Bc2 {[%clk 0:00:19.5]}
41... h6 {[%clk 0:00:03.3]} 42. a3 {[%clk 0:00:18.6]} 42... Ne6 {[%clk
0:00:03.6]} 43. b4 {[%clk 0:00:17.1]} 43... Nd4 {[%clk 0:00:04.3]} 44. Ba4
{[%clk 0:00:15.4]} 44... axb4 {[%clk 0:00:03.6]} 45. axb4 {[%clk 0:00:14.9]}
45... Nf5+ {[%clk 0:00:03.7]} 46. Ke4 {[%clk 0:00:14.1]} 46... Nd4 {[%clk
0:00:03.4]} 47. c5+ {[%clk 0:00:13.2]} 47... Ke6 {[%clk 0:00:03.5]} 48. Bd1
{[%clk 0:00:09.6]} 48... Nc6 {[%clk 0:00:02.8]} 49. b5 {[%clk 0:00:06.6]} 49...
Nd4 {[%clk 0:00:02.8]} 50. Ba4 {[%clk 0:00:04.2]} 1-0

[Event "*** Titled Tuesday Blitz"]
[Site "Chess.com"]
[Date "2020.05.19"]
[Round "4"]
[White "Bossche-CM"]
[Black "Konek-Gorbunok"]
[Result "1-0"]
[WhiteElo "2459"]
[BlackElo "2282"]
[TimeControl "180+1"]
[EndTime "12:41:21 PDT"]
[Termination "Bossche-CM won by resignation"]

1. e4 {[%clk 0:03:00.9]} 1... c5 {[%clk 0:02:59.9]} 2. b3 {[%clk 0:03:00.6]}
2... d6 {[%clk 0:02:58.9]} 3. Bb2 {[%clk 0:02:58.9]} 3... e5 {[%clk 0:02:59.3]}
4. Bc4 {[%clk 0:02:54.3]} 4... Be7 {[%clk 0:02:57.7]} 5. d3 {[%clk 0:02:50.9]}
5... Nf6 {[%clk 0:02:56.9]} 6. Ne2 {[%clk 0:02:50.9]} 6... O-O {[%clk
0:02:56.7]} 7. O-O {[%clk 0:02:50.5]} 7... Nc6 {[%clk 0:02:56.9]} 8. Nbc3 {[%clk
0:02:47.7]} 8... Be6 {[%clk 0:02:51.7]} 9. f4 {[%clk 0:02:40.6]} 9... Bxc4
{[%clk 0:02:27.6]} 10. bxc4 {[%clk 0:02:37.6]} 10... Nd4 {[%clk 0:02:16.5]} 11.
Rb1 {[%clk 0:02:36.9]} 11... b6 {[%clk 0:02:13.7]} 12. Ng3 {[%clk 0:02:30.5]}
12... exf4 {[%clk 0:01:57.1]} 13. Rxf4 {[%clk 0:02:28.1]} 13... Nd7 {[%clk
0:01:54.3]} 14. Nd5 {[%clk 0:02:25.2]} 14... Bg5 {[%clk 0:01:53.5]} 15. Rf1
{[%clk 0:02:22.5]} 15... Nf6 {[%clk 0:01:39.9]} 16. Bxd4 {[%clk 0:02:13.4]}
16... cxd4 {[%clk 0:01:33.9]} 17. Rf5 {[%clk 0:01:59.8]} 17... Nxd5 {[%clk
0:01:26.3]} 18. exd5 {[%clk 0:01:40.1]} 18... g6 {[%clk 0:01:19.6]} 19. Rf1
{[%clk 0:01:28.5]} 19... Be3+ {[%clk 0:01:17.4]} 20. Kh1 {[%clk 0:01:28.1]}
20... f5 {[%clk 0:01:17.1]} 21. Qf3 {[%clk 0:01:25.3]} 21... Qh4 {[%clk
0:01:11.2]} 22. Rfe1 {[%clk 0:01:22.8]} 22... Rae8 {[%clk 0:01:03.2]} 23. Re2
{[%clk 0:01:14.6]} 23... Re5 {[%clk 0:00:49.8]} 24. Rbe1 {[%clk 0:01:09.3]}
24... Rfe8 {[%clk 0:00:45.9]} 25. Nf1 {[%clk 0:01:01.3]} 25... f4 {[%clk
0:00:45.5]} 26. g3 {[%clk 0:00:46.6]} 26... Qh6 {[%clk 0:00:41]} 27. gxf4 {[%clk
0:00:35.2]} 27... Bxf4 {[%clk 0:00:30.5]} 28. Rxe5 {[%clk 0:00:34.3]} 28... Bxe5
{[%clk 0:00:30.4]} 29. Ng3 {[%clk 0:00:20.7]} 29... Rf8 {[%clk 0:00:24.2]} 30.
Qg2 {[%clk 0:00:20.6]} 30... Qh4 {[%clk 0:00:17.9]} 31. Rf1 {[%clk 0:00:19.5]}
31... Bxg3 {[%clk 0:00:14.5]} 32. Rxf8+ {[%clk 0:00:17.4]} 32... Kxf8 {[%clk
0:00:14.7]} 33. Qxg3 {[%clk 0:00:18.1]} 33... Qf6 {[%clk 0:00:13.6]} 34. Kg2
{[%clk 0:00:15.6]} 34... Ke7 {[%clk 0:00:13.4]} 35. Qh3 {[%clk 0:00:15]} 35...
Qe5 {[%clk 0:00:12.5]} 36. Qxh7+ {[%clk 0:00:13]} 36... Kf6 {[%clk 0:00:11.9]}
37. Qh8+ {[%clk 0:00:13.2]} 37... Kf5 {[%clk 0:00:11.9]} 38. Qxe5+ {[%clk
0:00:13.6]} 38... Kxe5 {[%clk 0:00:12]} 39. Kf3 {[%clk 0:00:14]} 39... Kf5
{[%clk 0:00:11.7]} 40. h4 {[%clk 0:00:14.6]} 40... a6 {[%clk 0:00:09.9]} 41. a3
{[%clk 0:00:14.8]} 41... b5 {[%clk 0:00:09.4]} 42. cxb5 {[%clk 0:00:13.2]} 42...
axb5 {[%clk 0:00:09.3]} 43. Kg3 {[%clk 0:00:13.7]} 43... g5 {[%clk 0:00:08.5]}
44. h5 {[%clk 0:00:12.2]} 44... Ke5 {[%clk 0:00:01.8]} 45. Kg4 {[%clk
0:00:10.8]} 45... Kf6 {[%clk 0:00:01.8]} 46. h6 {[%clk 0:00:10.5]} 46... Kg6
{[%clk 0:00:02.2]} 47. h7 {[%clk 0:00:11]} 47... Kxh7 {[%clk 0:00:02.5]} 48.
Kxg5 {[%clk 0:00:11.9]} 48... Kg7 {[%clk 0:00:03.4]} 49. Kf5 {[%clk 0:00:11.7]}
49... Kf7 {[%clk 0:00:04]} 50. Ke4 {[%clk 0:00:12.4]} 1-0